fUSD/lending_fUSD_20250125
["ID","MTS","AMOUNT","RATE_DAILY","PERIOD"]
[350396545,1737827469203,-500.0,0.00018082,2]
[350396546,1737827469213,-500.0,0.00018082,2]
[350396547,1737827469222,-500.0,0.00018082,2]
[350396548,1737827469232,-233.73,0.00018082,2]
[350396549,1737827469241,-151.0,0.00018082,2]
[350396550,1737827469251,-580.05,0.00018082,2]
[350396551,1737827469261,-151.0,0.00018082,2]
[350396552,1737827469271,-500.0,0.00018082,2]
[350396553,1737827469281,-500.0,0.00018082,2]
[350396554,1737827469376,-500.0,0.00018082,2]
[350396555,1737827469387,-705.68,0.00018082,2]
[350396556,1737827469396,-661.1,0.00018082,2]
[350396557,1737827469405,-948.74,0.00018082,2]
[350396558,1737827469415,-500.0,0.00018082,2]
[350396559,1737827469424,-631.36,0.00018082,2]
[350396560,1737827469435,-1166.0,0.00018082,2]
[350396561,1737827469445,-500.0,0.00018082,2]
[350396562,1737827469454,-500.0,0.00018082,2]
[350396563,1737827469464,-932.36,0.00018082,2]
[350396564,1737827469473,-1395.21,0.00018082,2]
[350396565,1737827469483,-500.0,0.00018082,2]
[350396566,1737827469493,-244.27,0.00018082,2]
[350396567,1737827469503,-500.0,0.00018082,2]
[350396568,1737827469512,-225.42,0.00018082,2]
[350396569,1737827469522,-500.0,0.00018082,2]
[350396570,1737827469531,-500.0,0.00018082,2]
[350396571,1737827469542,-500.0,0.00018082,2]
[350396572,1737827469552,-954.8,0.00018082,2]
[350396573,1737827469562,-500.0,0.00018082,2]
[350396574,1737827469575,-1526.01,0.00018082,2]
[350396575,1737827469584,-500.0,0.00018082,2]
[350396576,1737827469594,-500.0,0.00018082,2]
[350396577,1737827469604,-596.23,0.00018082,2]
[350396578,1737827469614,-500.0,0.00018082,2]
[350396579,1737827469625,-500.0,0.00018082,2]
[350396580,1737827469634,-912.78,0.00018082,2]
[350396581,1737827469643,-500.0,0.00018082,2]
[350396582,1737827469653,-500.0,0.00018082,2]
[350396583,1737827469662,-508.49,0.00018082,2]
[350396584,1737827469672,-500.0,0.00018082,2]
[350396585,1737827469682,-500.0,0.00018082,2]
[350396586,1737827469691,-924.23,0.00018082,2]
[350396587,1737827469701,-584.85,0.00018082,2]
[350396588,1737827469710,-500.0,0.00018082,2]
[350396589,1737827469723,-819.82,0.00018082,2]
[350396590,1737827469732,-500.45,0.00018082,2]
[350396591,1737827469742,-500.0,0.00018082,2]
[350396592,1737827469751,-519.5,0.00018082,2]
[350396593,1737827469762,-500.0,0.00018082,2]
[350396594,1737827469772,-850.9,0.00018082,2]
[350396595,1737827469782,-500.0,0.00018082,2]
[350396596,1737827469792,-500.0,0.00018082,2]
[350396597,1737827469801,-500.0,0.00018082,2]
[350396598,1737827469811,-500.0,0.00018082,2]
[350396599,1737827469821,-658.73,0.00018082,2]
[350396600,1737827469830,-1164.08,0.00018082,2]
[350396601,1737827469840,-641.02,0.00018082,2]
[350396602,1737827469849,-722.89,0.00018082,2]
[350396603,1737827469858,-500.0,0.00018082,2]
[350396604,1737827469869,-500.0,0.00018082,2]
[350396605,1737827469879,-500.0,0.00018082,2]
[350396606,1737827469889,-500.0,0.00018082,2]
[350396607,1737827469899,-500.0,0.00018082,2]
[350396608,1737827469909,-1387.13,0.00018082,2]
[350396609,1737827469919,-1000.0,0.00018082,2]
[350396610,1737827469931,-500.0,0.00018082,2]
[350396611,1737827469941,-586.66,0.00018082,2]
[350396612,1737827469951,-552.37,0.00018082,2]
[350396613,1737827469960,-500.0,0.00018082,2]
[350396614,1737827469971,-613.16,0.00018082,2]
[350396615,1737827469981,-701.42,0.00018082,2]
[350396616,1737827469990,-500.0,0.00018082,2]
[350396617,1737827470000,-500.0,0.00018082,2]
[350396618,1737827470011,-500.0,0.00018082,2]
[350396619,1737827470021,-287.595228,0.00018082,2]
[350396620,1737827470030,-500.0,0.00018082,2]
[350396621,1737827470039,-500.0,0.00018082,2]
[350396622,1737827470048,-500.0,0.00018082,2]
[350396623,1737827470058,-500.0,0.00018082,2]
[350396624,1737827470067,-615.95,0.00018082,2]
[350396625,1737827470077,-500.0,0.00018082,2]
[350396626,1737827470085,-151.0,0.00018082,2]
[350396627,1737827470095,-999.73,0.00018082,2]
[350396628,1737827470104,-500.0,0.00018082,2]
[350396629,1737827470113,-500.0,0.00018082,2]
[350396630,1737827470125,-200.0,0.00018082,2]
[350396631,1737827470134,-1801.0,0.00018116,2]
[350396632,1737827470145,-500.0,0.00018164,2]
[350396633,1737827470155,-500.0,0.00018164,2]
[350396634,1737827470164,-485.87309874,0.00018176,2]
[350396635,1737827470173,-969.28,0.00018218,2]
[350396636,1737827470182,-162.82,0.00018219,2]
[350396637,1737827470193,-500.0,0.00018219,2]
[350396638,1737827470203,-500.0,0.00018219,2]
[350396639,1737827470213,-580.05,0.00018219,2]
[350396640,1737827470222,-500.0,0.00018219,2]
[350396641,1737827470232,-500.0,0.00018219,2]
[350396642,1737827470241,-500.0,0.00018219,2]
[350396643,1737827470250,-705.68,0.00018219,2]
[350396644,1737827470260,-661.1,0.00018219,2]
[350396645,1737827470269,-948.74,0.00018219,2]
[350396646,1737827470278,-500.0,0.00018219,2]
[350396647,1737827470287,-631.36,0.00018219,2]
[350396648,1737827470297,-1166.0,0.00018219,2]
[350396649,1737827470307,-500.0,0.00018219,2]
[350396650,1737827470316,-500.0,0.00018219,2]
[350396651,1737827470325,-932.36,0.00018219,2]
[350396652,1737827470334,-1395.21,0.00018219,2]
[350396653,1737827470345,-340.96,0.00018219,2]
[350396654,1737827470355,-500.0,0.00018219,2]
[350396655,1737827470364,-500.0,0.00018219,2]
[350396656,1737827470374,-500.0,0.00018219,2]
[350396657,1737827470383,-236.2,0.00018219,2]
[350396658,1737827470392,-954.8,0.00018219,2]
[350396659,1737827470401,-500.0,0.00018219,2]
[350396660,1737827470410,-1526.01,0.00018219,2]
[350396661,1737827470419,-500.0,0.00018219,2]
[350396662,1737827470428,-500.0,0.00018219,2]
[350396663,1737827470437,-596.23,0.00018219,2]
[350396664,1737827470446,-500.0,0.00018219,2]
[350396665,1737827470456,-500.0,0.00018219,2]
[350396666,1737827470465,-912.78,0.00018219,2]
[350396667,1737827470474,-500.0,0.00018219,2]
[350396668,1737827470483,-508.49,0.00018219,2]
[350396669,1737827470493,-500.0,0.00018219,2]
[350396670,1737827470502,-500.0,0.00018219,2]
[350396671,1737827470512,-924.23,0.00018219,2]
[350396672,1737827470521,-584.85,0.00018219,2]
[350396673,1737827470531,-500.0,0.00018219,2]
[350396674,1737827470541,-819.82,0.00018219,2]
[350396675,1737827470550,-500.45,0.00018219,2]
[350396676,1737827470560,-500.0,0.00018219,2]
[350396677,1737827470569,-519.5,0.00018219,2]
[350396678,1737827470579,-275.6,0.00018219,2]
[350396679,1737827470589,-850.9,0.00018219,2]
[350396680,1737827470598,-500.0,0.00018219,2]
[350396681,1737827470607,-500.0,0.00018219,2]
[350396682,1737827470617,-500.0,0.00018219,2]
[350396683,1737827470627,-658.73,0.00018219,2]
[350396684,1737827470637,-1164.08,0.00018219,2]
[350396685,1737827470647,-641.02,0.00018219,2]
[350396686,1737827470657,-722.89,0.00018219,2]
[350396687,1737827470666,-500.0,0.00018219,2]
[350396688,1737827470676,-500.0,0.00018219,2]
[350396689,1737827470686,-500.0,0.00018219,2]
[350396690,1737827470695,-500.0,0.00018219,2]
[350396691,1737827470705,-1387.13,0.00018219,2]
[350396692,1737827470714,-517.65080487,0.00018219,2]
[350396693,1737827470724,-586.66,0.00018219,2]
[350396694,1737827470734,-552.37,0.00018219,2]
[350396695,1737827470744,-500.0,0.00018219,2]
[350396696,1737827470753,-701.42,0.00018219,2]
[350396697,1737827470763,-500.0,0.00018219,2]
[350396698,1737827470773,-266.11,0.00018219,2]
[350396699,1737827470782,-500.0,0.00018219,2]
[350396700,1737827470792,-500.0,0.00018219,2]
[350396701,1737827470802,-500.0,0.00018219,2]
[350396702,1737827470811,-185.87,0.00018219,2]
[350396703,1737827470821,-500.0,0.00018219,2]
[350396704,1737827470830,-615.95,0.00018219,2]
[350396705,1737827470840,-500.0,0.00018219,2]
[350396706,1737827470850,-999.73,0.00018219,2]
[350396707,1737827470859,-500.0,0.00018219,2]
[350396708,1737827470870,-500.0,0.00018219,2]
[350396709,1737827470879,-151.44,0.000183,2]
[350396710,1737827470888,-151.44,0.000183,2]
[350396711,1737827470899,-969.28,0.00018355,2]
[350396712,1737827470908,-500.0,0.00018356,2]
[350396713,1737827471001,-500.0,0.00018356,2]
[350396714,1737827471013,-580.05,0.00018356,2]
[350396715,1737827471023,-500.0,0.00018356,2]
[350396716,1737827471033,-500.0,0.00018356,2]
[350396717,1737827471042,-500.0,0.00018356,2]
[350396718,1737827471052,-705.68,0.00018356,2]
[350396719,1737827471062,-661.1,0.00018356,2]
[350396720,1737827471071,-948.74,0.00018356,2]
[350396721,1737827471081,-500.0,0.00018356,2]
[350396722,1737827471090,-631.36,0.00018356,2]
[350396723,1737827471101,-1166.0,0.00018356,2]
[350396724,1737827471111,-500.0,0.00018356,2]
[350396725,1737827471122,-500.0,0.00018356,2]
[350396726,1737827471132,-932.36,0.00018356,2]
[350396727,1737827471142,-1395.21,0.00018356,2]
[350396728,1737827471153,-500.0,0.00018356,2]
[350396729,1737827471163,-500.0,0.00018356,2]
[350396730,1737827471173,-500.0,0.00018356,2]
[350396731,1737827471184,-954.8,0.00018356,2]
[350396732,1737827471193,-1526.01,0.00018356,2]
[350396733,1737827471202,-500.0,0.00018356,2]
[350396734,1737827471212,-500.0,0.00018356,2]
[350396735,1737827471221,-596.23,0.00018356,2]
[350396736,1737827471231,-500.0,0.00018356,2]
[350396737,1737827471241,-912.78,0.00018356,2]
[350396738,1737827471250,-500.0,0.00018356,2]
[350396739,1737827471260,-508.49,0.00018356,2]
[350396740,1737827471269,-500.0,0.00018356,2]
[350396741,1737827471280,-924.23,0.00018356,2]
[350396742,1737827471289,-584.85,0.00018356,2]
[350396743,1737827471299,-500.0,0.00018356,2]
[350396744,1737827471310,-819.82,0.00018356,2]
[350396745,1737827471319,-500.45,0.00018356,2]
[350396746,1737827471328,-569.72,0.00018356,2]
[350396747,1737827471338,-519.5,0.00018356,2]
[350396748,1737827471348,-850.9,0.00018356,2]
[350396749,1737827471358,-500.0,0.00018356,2]
[350396750,1737827471367,-500.0,0.00018356,2]
[350396751,1737827471377,-500.0,0.00018356,2]
[350396752,1737827471386,-658.73,0.00018356,2]
[350396753,1737827471396,-1164.08,0.00018356,2]
[350396754,1737827471405,-641.02,0.00018356,2]
[350396755,1737827471414,-722.89,0.00018356,2]
[350396756,1737827471424,-500.0,0.00018356,2]
[350396757,1737827471434,-1387.13,0.00018356,2]
[350396758,1737827471444,-586.66,0.00018356,2]
[350396759,1737827471454,-552.37,0.00018356,2]
[350396760,1737827471465,-701.42,0.00018356,2]
[350396761,1737827471474,-500.0,0.00018356,2]
[350396762,1737827471484,-500.0,0.00018356,2]
[350396763,1737827471493,-500.0,0.00018356,2]
[350396764,1737827471502,-500.0,0.00018356,2]
[350396765,1737827471512,-615.95,0.00018356,2]
[350396766,1737827471521,-247.55,0.00018356,2]
[350396767,1737827471531,-999.73,0.00018356,2]
[350396768,1737827471540,-500.0,0.00018356,2]
[350396769,1737827471550,-500.0,0.00018356,2]
[350396770,1737827471560,-485.87309874,0.00018486,2]
[350396771,1737827471570,-969.28,0.00018492,2]
[350396772,1737827471580,-688.05,0.00018492,2]
[350396773,1737827471590,-158.100804,0.00018493,2]
[350396774,1737827471600,-151.0,0.00018493,2]
[350396775,1737827471610,-151.0,0.00018493,2]
[350396776,1737827471621,-151.0,0.00018493,2]
[350396777,1737827471631,-151.0,0.00018493,2]
[350396778,1737827471640,-151.0,0.00018493,2]
[350396779,1737827471650,-151.0,0.00018493,2]
[350396780,1737827471660,-151.0,0.00018493,2]
[350396781,1737827471670,-500.0,0.00018493,2]
[350396782,1737827471679,-500.0,0.00018493,2]
[350396783,1737827471689,-580.05,0.00018493,2]
[350396784,1737827471699,-500.0,0.00018493,2]
[350396785,1737827471710,-500.0,0.00018493,2]
[350396786,1737827471720,-500.0,0.00018493,2]
[350396787,1737827471729,-705.68,0.00018493,2]
[350396788,1737827471739,-661.1,0.00018493,2]
[350396789,1737827471749,-948.74,0.00018493,2]
[350396790,1737827471759,-500.0,0.00018493,2]
[350396791,1737827471769,-631.36,0.00018493,2]
[350396792,1737827471780,-1166.0,0.00018493,2]
[350396793,1737827471790,-153.27,0.00018493,2]
[350396794,1737827471799,-500.0,0.00018493,2]
[350396795,1737827471809,-932.36,0.00018493,2]
[350396796,1737827471818,-1395.21,0.00018493,2]
[350396797,1737827471828,-500.0,0.00018493,2]
[350396798,1737827471837,-500.0,0.00018493,2]
[350396799,1737827471846,-632.1,0.00018493,2]
[350396800,1737827471855,-954.8,0.00018493,2]
[350396801,1737827471866,-1526.01,0.00018493,2]
[350396802,1737827471876,-500.0,0.00018493,2]
[350396803,1737827471886,-500.0,0.00018493,2]
[350396804,1737827471896,-596.23,0.00018493,2]
[350396805,1737827471906,-500.0,0.00018493,2]
[350396806,1737827471915,-912.78,0.00018493,2]
[350396807,1737827471924,-500.0,0.00018493,2]
[350396808,1737827471937,-508.49,0.00018493,2]
[350396809,1737827471947,-500.0,0.00018493,2]
[350396810,1737827471956,-924.23,0.00018493,2]
[350396811,1737827471966,-584.85,0.00018493,2]
[350396812,1737827471976,-532.36,0.00018493,2]
[350396813,1737827471986,-819.82,0.00018493,2]
[350396814,1737827471995,-500.45,0.00018493,2]
[350396815,1737827472007,-519.5,0.00018493,2]
[350396816,1737827472019,-850.9,0.00018493,2]
[350396817,1737827472030,-500.0,0.00018493,2]
[350396818,1737827472040,-500.0,0.00018493,2]
[350396819,1737827472049,-500.0,0.00018493,2]
[350396820,1737827472059,-658.73,0.00018493,2]
[350396821,1737827472069,-1164.08,0.00018493,2]
[350396822,1737827472079,-641.02,0.00018493,2]
[350396823,1737827472088,-722.89,0.00018493,2]
[350396824,1737827472098,-500.0,0.00018493,2]
[350396825,1737827472107,-1387.13,0.00018493,2]
[350396826,1737827472118,-586.66,0.00018493,2]
[350396827,1737827472128,-552.37,0.00018493,2]
[350396828,1737827472139,-701.42,0.00018493,2]
[350396829,1737827472148,-500.0,0.00018493,2]
[350396830,1737827472158,-500.0,0.00018493,2]
[350396831,1737827472167,-500.0,0.00018493,2]
[350396832,1737827472176,-500.0,0.00018493,2]
[350396833,1737827472186,-615.95,0.00018493,2]
[350396834,1737827472195,-999.73,0.00018493,2]
[350396835,1737827472204,-500.0,0.00018493,2]
[350396836,1737827472214,-500.0,0.00018493,2]
[350396837,1737827472224,-969.28,0.00018629,2]
[350396838,1737827472233,-500.0,0.0001863,2]
[350396839,1737827472243,-500.0,0.0001863,2]
[350396840,1737827472253,-580.05,0.0001863,2]
[350396841,1737827472263,-500.0,0.0001863,2]
[350396842,1737827472272,-500.0,0.0001863,2]
[350396843,1737827472281,-500.0,0.0001863,2]
[350396844,1737827472290,-705.68,0.0001863,2]
[350396845,1737827472300,-661.1,0.0001863,2]
[350396846,1737827472309,-948.74,0.0001863,2]
[350396847,1737827472318,-500.0,0.0001863,2]
[350396848,1737827472328,-631.36,0.0001863,2]
[350396849,1737827472338,-1166.0,0.0001863,2]
[350396850,1737827472348,-500.0,0.0001863,2]
[350396851,1737827472358,-932.36,0.0001863,2]
[350396852,1737827472368,-1395.21,0.0001863,2]
[350396853,1737827472378,-637.48919104,0.0001863,2]
[350396854,1737827472388,-500.0,0.0001863,2]
[350396855,1737827472397,-954.8,0.0001863,2]
[350396856,1737827472407,-1526.01,0.0001863,2]
[350396857,1737827472417,-500.0,0.0001863,2]
[350396858,1737827472427,-500.0,0.0001863,2]
[350396859,1737827472436,-596.23,0.0001863,2]
[350396860,1737827472446,-500.0,0.0001863,2]
[350396861,1737827472456,-912.78,0.0001863,2]
[350396862,1737827472547,-500.0,0.0001863,2]
[350396863,1737827472557,-508.49,0.0001863,2]
[350396864,1737827472567,-500.0,0.0001863,2]
[350396865,1737827472577,-924.23,0.0001863,2]
[350396866,1737827472587,-584.85,0.0001863,2]
[350396867,1737827472597,-819.82,0.0001863,2]
[350396868,1737827472607,-500.45,0.0001863,2]
[350396869,1737827472616,-519.5,0.0001863,2]
[350396870,1737827472626,-850.9,0.0001863,2]
[350396871,1737827472636,-500.0,0.0001863,2]
[350396872,1737827472646,-500.0,0.0001863,2]
[350396873,1737827472656,-500.0,0.0001863,2]
[350396874,1737827472666,-658.73,0.0001863,2]
[350396875,1737827472675,-1164.08,0.0001863,2]
[350396876,1737827472685,-641.02,0.0001863,2]
[350396877,1737827472694,-722.89,0.0001863,2]
[350396878,1737827472705,-500.0,0.0001863,2]
[350396879,1737827472714,-1387.13,0.0001863,2]
[350396880,1737827472724,-586.66,0.0001863,2]
[350396881,1737827472734,-552.37,0.0001863,2]
[350396882,1737827472744,-701.42,0.0001863,2]
[350396883,1737827472754,-500.0,0.0001863,2]
[350396884,1737827472763,-500.0,0.0001863,2]
[350396885,1737827472773,-500.0,0.0001863,2]
[350396886,1737827472783,-500.0,0.0001863,2]
[350396887,1737827472793,-615.95,0.0001863,2]
[350396888,1737827472803,-999.73,0.0001863,2]
[350396889,1737827472812,-500.0,0.0001863,2]
[350396890,1737827472822,-166.6995344,0.0001863,2]
[350396891,1737827472832,-969.28,0.00018766,2]
[350396892,1737827472842,-500.0,0.00018767,2]
[350396893,1737827472852,-500.0,0.00018767,2]
[350396894,1737827472862,-580.05,0.00018767,2]
[350396895,1737827472874,-500.0,0.00018767,2]
[350396896,1737827472884,-500.0,0.00018767,2]
[350396897,1737827472893,-500.0,0.00018767,2]
[350396898,1737827472902,-705.68,0.00018767,2]
[350396899,1737827472911,-661.1,0.00018767,2]
[350396900,1737827472921,-948.74,0.00018767,2]
[350396901,1737827472934,-500.0,0.00018767,2]
[350396902,1737827472943,-631.36,0.00018767,2]
[350396903,1737827472954,-1166.0,0.00018767,2]
[350396904,1737827472963,-293.43,0.00018767,2]
[350396905,1737827472972,-932.36,0.00018767,2]
[350396906,1737827472982,-1395.21,0.00018767,2]
[350396907,1737827472991,-500.0,0.00018767,2]
[350396908,1737827473000,-954.8,0.00018767,2]
[350396909,1737827473010,-1526.01,0.00018767,2]
[350396910,1737827473019,-500.0,0.00018767,2]
[350396911,1737827473029,-500.0,0.00018767,2]
[350396912,1737827473038,-596.23,0.00018767,2]
[350396913,1737827473048,-393.29,0.00018767,2]
[350396914,1737827473058,-912.78,0.00018767,2]
[350396915,1737827473067,-500.0,0.00018767,2]
[350396916,1737827473076,-508.49,0.00018767,2]
[350396917,1737827473086,-500.0,0.00018767,2]
[350396918,1737827473095,-924.23,0.00018767,2]
[350396919,1737827473104,-584.85,0.00018767,2]
[350396920,1737827473113,-819.82,0.00018767,2]
[350396921,1737827473124,-500.45,0.00018767,2]
[350396922,1737827473133,-519.5,0.00018767,2]
[350396923,1737827473143,-850.9,0.00018767,2]
[350396924,1737827473152,-500.0,0.00018767,2]
[350396925,1737827473162,-500.0,0.00018767,2]
[350396926,1737827473171,-500.0,0.00018767,2]
[350396927,1737827473181,-658.73,0.00018767,2]
[350396928,1737827473190,-1164.08,0.00018767,2]
[350396929,1737827473199,-641.02,0.00018767,2]
[350396930,1737827473208,-722.89,0.00018767,2]
[350396931,1737827473217,-500.0,0.00018767,2]
[350396932,1737827473227,-1387.13,0.00018767,2]
[350396933,1737827473236,-586.66,0.00018767,2]
[350396934,1737827473246,-552.37,0.00018767,2]
[350396935,1737827473255,-701.42,0.00018767,2]
[350396936,1737827473264,-500.0,0.00018767,2]
[350396937,1737827473273,-500.0,0.00018767,2]
[350396938,1737827473283,-500.0,0.00018767,2]
[350396939,1737827473292,-500.0,0.00018767,2]
[350396940,1737827473302,-615.95,0.00018767,2]
[350396941,1737827473311,-999.73,0.00018767,2]
[350396942,1737827473320,-500.0,0.00018767,2]
[350396943,1737827473329,-485.87309874,0.00018797,2]
[350396944,1737827473338,-6626.97623097,0.00018822,2]
[350396945,1737827473348,-7698.42708174,0.00018822,2]
[350396946,1737827473357,-969.28,0.00018903,2]
[350396947,1737827473366,-500.0,0.00018904,2]
[350396948,1737827473376,-500.0,0.00018904,2]
[350396949,1737827473386,-580.05,0.00018904,2]
[350396950,1737827473395,-231.15,0.00018904,2]
[350396951,1737827473404,-301.58,0.00018904,2]
[350396952,1737827473414,-423.18,0.00018904,2]
[350396953,1737827473423,-705.68,0.00018904,2]
[350396954,1737827473434,-661.1,0.00018904,2]
[350396955,1737827473444,-948.74,0.00018904,2]
[350396956,1737827473455,-500.0,0.00018904,2]
[350396957,1737827473465,-631.36,0.00018904,2]
[350396958,1737827473475,-1166.0,0.00018904,2]
[350396959,1737827473484,-932.36,0.00018904,2]
[350396960,1737827473494,-1395.21,0.00018904,2]
[350396961,1737827473503,-500.0,0.00018904,2]
[350396962,1737827473513,-954.8,0.00018904,2]
[350396963,1737827473522,-1526.01,0.00018904,2]
[350396964,1737827473533,-445.17,0.00018904,2]
[350396965,1737827473543,-500.0,0.00018904,2]
[350396966,1737827473552,-596.23,0.00018904,2]
[350396967,1737827473563,-912.78,0.00018904,2]
[350396968,1737827473572,-309.58,0.00018904,2]
[350396969,1737827473581,-508.49,0.00018904,2]
[350396970,1737827473590,-500.0,0.00018904,2]
[350396971,1737827473599,-924.23,0.00018904,2]
[350396972,1737827473609,-584.85,0.00018904,2]
[350396973,1737827473619,-819.82,0.00018904,2]
[350396974,1737827473629,-500.45,0.00018904,2]
[350396975,1737827473638,-519.5,0.00018904,2]
[350396976,1737827473648,-850.9,0.00018904,2]
[350396977,1737827473657,-500.0,0.00018904,2]
[350396978,1737827473667,-500.0,0.00018904,2]
[350396979,1737827473676,-500.0,0.00018904,2]
[350396980,1737827473685,-658.73,0.00018904,2]
[350396981,1737827473695,-1164.08,0.00018904,2]
[350396982,1737827473704,-641.02,0.00018904,2]
[350396983,1737827473714,-722.89,0.00018904,2]
[350396984,1737827473723,-500.0,0.00018904,2]
[350396985,1737827473732,-1387.13,0.00018904,2]
[350396986,1737827473742,-586.66,0.00018904,2]
[350396987,1737827473752,-552.37,0.00018904,2]
[350396988,1737827473761,-701.42,0.00018904,2]
[350396989,1737827473771,-500.0,0.00018904,2]
[350396990,1737827473780,-500.0,0.00018904,2]
[350396991,1737827473789,-500.0,0.00018904,2]
[350396992,1737827473798,-500.0,0.00018904,2]
[350396993,1737827473808,-615.95,0.00018904,2]
[350396994,1737827473817,-999.73,0.00018904,2]
[350396995,1737827473826,-500.0,0.00018904,2]
[350396996,1737827473835,-316.78,0.00018963,2]
[350396997,1737827473845,-688.05,0.00018979,2]
[350396998,1737827473932,-321753.45224943,0.0001898,2]
[350396999,1737827473942,-237.96127,0.0001898,2]
[350397000,1737827473952,-151.0,0.0001898,2]
[350397001,1737827473961,-282.681009,0.0001898,2]
[350397002,1737827473971,-282.681009,0.0001898,2]
[350397003,1737827473980,-278.550308,0.0001898,2]
[350397004,1737827473989,-318.364003,0.0001898,2]
[350397005,1737827473998,-318.364003,0.0001898,2]
[350397006,1737827474009,-151.0,0.0001898,2]
[350397007,1737827474019,-153.309865,0.0001898,2]
[350397008,1737827474028,-151.0,0.0001898,2]
[350397009,1737827474038,-151.0,0.0001898,2]
[350397010,1737827474047,-174.916659,0.0001898,2]
[350397011,1737827474056,-181.000908,0.0001898,2]
[350397012,1737827474065,-181.000908,0.0001898,2]
[350397013,1737827474074,-151.0,0.0001898,2]
[350397014,1737827474084,-151.0,0.0001898,2]
[350397015,1737827474093,-1300.0,0.00019,2]
[350397016,1737827474103,-969.28,0.0001904,2]
[350397017,1737827474113,-500.0,0.00019041,2]
[350397018,1737827474123,-373.58,0.00019041,2]
[350397019,1737827474133,-580.05,0.00019041,2]
[350397020,1737827474142,-705.68,0.00019041,2]
[350397021,1737827474151,-661.1,0.00019041,2]
[350397022,1737827474160,-948.74,0.00019041,2]
[350397023,1737827474169,-500.0,0.00019041,2]
[350397024,1737827474179,-631.36,0.00019041,2]
[350397025,1737827474188,-1166.0,0.00019041,2]
[350397026,1737827474198,-932.36,0.00019041,2]
[350397027,1737827474208,-1395.21,0.00019041,2]
[350397028,1737827474217,-552.39,0.00019041,2]
[350397029,1737827474226,-954.8,0.00019041,2]
[350397030,1737827474235,-1526.01,0.00019041,2]
[350397031,1737827474245,-604.05,0.00019041,2]
[350397032,1737827474254,-596.23,0.00019041,2]
[350397033,1737827474264,-912.78,0.00019041,2]
[350397034,1737827474273,-508.49,0.00019041,2]
[350397035,1737827474282,-561.27,0.00019041,2]
[350397036,1737827474292,-924.23,0.00019041,2]
[350397037,1737827474302,-584.85,0.00019041,2]
[350397038,1737827474315,-819.82,0.00019041,2]
[350397039,1737827474325,-500.45,0.00019041,2]
[350397040,1737827474334,-519.5,0.00019041,2]
[350397041,1737827474345,-850.9,0.00019041,2]
[350397042,1737827474355,-500.0,0.00019041,2]
[350397043,1737827474365,-505.61,0.00019041,2]
[350397044,1737827474374,-239.99,0.00019041,2]